Cogmind - Beta 15 @@@ ROGUE MODE // 2025.06.20 @ 17:24:22 Player: Skysub Result: Self-destructed Performance ------------- Evolutions (4) 2000 Regions Visited (4) 800 Robots Destroyed (23) 115 Value Destroyed (654) 654 Prototype IDs (11) 220 Alien Tech Used (0) 0 Bonus (800) 800 TOTAL SCORE: 4589 Bonus ------- Registered with UFD 300 Met Optimus in HQ 500 Cogmind --------- Core Integrity 555/850 Matter 122/300 Energy 55/100 System Corruption 1% Temperature Cool (6) Movement Core (50) Location -6/Factory Parts ------- > --- POWER (2) -------- (None) > --- PROPULSION (4) --- (None) > --- UTILITY (7) ------ Improved Targeting Computer Core Analyzer Transmission Jammer Hacking Suite Improved System Shield > --- WEAPON (2) ------- (None) > --- INVENTORY (5) ---- Improved Deuterium Engine Rainbow Chip Power Maul DRS Beacon (Ready) Peak State ------------ > --- POWER ------------ Angular Momentum Engine Light Fission Core > --- PROPULSION ------- Light Treads Armored Treads Armored Treads > --- UTILITY ---------- Large Storage Unit Structural Scanner Transmission Jammer Improved Shield Generator Hacking Suite Makeshift Hacking Suite Improved System Shield > --- WEAPON ----------- Mini Grenade Launcher Power Maul > --- INVENTORY -------- Improved Deuterium Engine Improved Targeting Computer Core Analyzer System Shield Rainbow Chip Heavy Assault Rifle Datajack DRS Beacon Botcube [Rating: 49] Favorites ----------- Power Ion Engine Engine Ion Engine Power Core Nuclear Core Propulsion Light Treads Treads Light Treads Wheel Wheel Utility Structural Scanner Device Structural Scanner Storage Large Storage Unit Processor Improved Targeting Computer Hackware Improved System Shield Weapon Mining Laser Energy Gun Heavy Laser Ballistic Gun Assault Rifle Launcher Grenade Launcher Special Weapon Mining Laser Impact Weapon Power Maul Special Melee Weapon Datajack Build | -11 -10 -10 -8 -6 ------- Run | Yrd Mat Sub Scr Fac Slots Evolved 8 | . . . . 8 Power 1 | . . . . 1 Propulsion 2 | . . . . 2 Utility 5 | . . . . 5 Weapon . | . . . . . Parts Attached 35 | 7 7 1 8 12 Power 7 | 1 2 . 2 2 Engine 5 | 1 2 . 1 1 Core 2 | . . . 1 1 Reactor . | . . . . . Propulsion 7 | 2 2 . 3 . Treads 6 | 2 1 . 3 . Leg . | . . . . . Wheel 1 | . 1 . . . Hover . | . . . . . Flight . | . . . . . Utility 12 | 2 2 . 1 7 Device 4 | 1 1 . . 2 Storage 3 | 1 1 . 1 . Processor 2 | . . . . 2 Hackware 3 | . . . . 3 Protection . | . . . . . Artifact . | . . . . . Weapon 9 | 2 1 1 2 3 Energy Gun 1 | . . . . 1 Energy Cannon . | . . . . . Ballistic Gun 3 | 2 . . . 1 Ballistic Cannon . | . . . . . Launcher 2 | . 1 . 1 . Special Weapon 1 | . . 1 . . Impact Weapon 1 | . . . 1 . Slashing Weapon . | . . . . . Piercing Weapon . | . . . . . Special Melee Weapon 1 | . . . . 1 Unidentified Prototypes . | . . . . . Parts Lost 15 | . 4 . . 11 Power 4 | . 2 . . 2 Propulsion 5 | . 2 . . 3 Utility 3 | . . . . 3 Weapon 3 | . . . . 3 Highest Loss Streak 11 | . 3 . . 11 To Critical Strikes . | . . . . . Average Backups 5 | 3 7 9 5 7 Power . | . . . . . Propulsion 1 | 1 1 . . . Utility 2 | . 3 5 2 5 Weapon 1 | . 2 4 1 . Tool/Special . | . . . . . Unused Backups 51 | . 1 1 47 2 Power 8 | . . . 8 . Propulsion 10 | . 1 . 9 . Utility 20 | . . . 18 2 Weapon 13 | . . 1 12 . Tool/Special . | . . . . . Average Slot Usage (%) 94 | . 93 100 94 80 Engine 11 | . 11 14 12 5 Treads 16 | . 23 14 14 17 Wheel 10 | . . 14 12 . Device 13 | . 14 14 12 17 Storage 13 | . 14 14 13 5 Ballistic Gun 4 | . 27 10 . . Launcher 10 | . . 14 12 5 Special Weapon 10 | . . 3 12 . Peak Build Rating 49 | 9 10 9 24 49 Average Rating 10 | 5 7 8 8 42 On Entrance 10 | . 9 8 9 24 Naked Turns . | . . . . . Heaviest Build 50 | 12 21 21 35 50 Greatest Support 60 | 40 40 10 40 60 Greatest Overweight (x) 2 | . 2 2 2 1 Average Overweight (x) 1 | . . 1 1 . Largest Inventory Capacity 15 | 8 10 10 15 15 Average Capacity 13 | 7 8 10 14 14 Most Carried 15 | 5 10 10 15 15 Average Carried 6 | 3 7 9 5 9 Final Capacity 15 | 8 10 10 15 5 Final Carried 15 | 5 9 10 15 4 Class Distribution -------------------- 66% | Scavenger-Mutant 23% | Mutant 8% | Derelict-Mutant Dominant Class ---------------- Mutant | -10/Materials Mutant | -10/Subcaves Scavenger-Mutant | -8/Scraptown Derelict-Mutant | -6/Factory Resources | -11 -10 -10 -8 -6 ----------- Run | Yrd Mat Sub Scr Fac Matter Collected 869 | 293 371 79 82 44 Remotely . | . . . . . Salvage Created 760 | 85 512 66 . 97 Parts 48 | 7 35 3 . 3 Haulers Intercepted 1 | . 1 . . . Recyclers Shooed 1 | 1 . . . . Parts Field Recycled . | . . . . . Retrieved Matter . | . . . . . Parts Self-Destructed 5 | . . 5 . . Prevented . | . . . . . Kills | -11 -10 -10 -8 -6 ------- Run | Yrd Mat Sub Scr Fac Combat Hostiles Destroyed 18 | . 12 2 . 4 Guns 14 | . 12 . . 2 AOE 3 | . . 2 . 1 Classes Destroyed 8 | 2 4 1 . 1 Builder 2 | . 2 . . . Tunneler 1 | 1 . . . . Hauler 1 | . 1 . . . Recycler 1 | 1 . . . . Swarmer 4 | . 3 . . 1 Grunt 11 | . 9 . . 2 Programmer 1 | . . . . 1 Subdweller 2 | . . 2 . . Best Kill Streak 3 | 1 3 2 . 2 Combat Bots Only 3 | . 3 2 . 2 Max Kills in Single Turn 1 | 1 1 1 . 1 Gunslinging . | . . . . . Exploded 1 | . . 1 . 1 Melee . | . . . . . Uniques/NPCs Destroyed . | . . . . . Combat | -11 -10 -10 -8 -6 -------- Run | Yrd Mat Sub Scr Fac Hostile Shots Fired 197 | . 84 6 7 100 Missed 51 | . 16 1 1 33 Hits 146 | . 68 5 6 67 Melee 1 | . . . 1 . Projectile 145 | . 68 5 5 67 AOE 3 | . . . . 3 Damage Taken 2346 | . 783 116 146 1301 Core 525 | . 185 25 20 295 Absorbed by Shields 40 | . . . . 40 Core Remaining (%) 54 | 100 . . 8 . Volleys Fired 114 | 9 79 7 . 19 Largest 2 | 2 2 2 . 1 Hottest 100 | 40 40 100 . 69 Shots Fired 204 | 18 155 12 . 19 Gun 189 | 18 152 5 . 14 Cannon . | . . . . . Launcher 13 | . 3 5 . 5 Special 2 | . . 2 . . Kinetic 187 | 18 152 5 . 12 Thermal 4 | . . 2 . 2 Explosive 13 | . 3 5 . 5 Electromagnetic . | . . . . . Robot Hit Streak 15 | 6 15 6 . 6 Robot Miss Streak 3 | 2 3 1 . 2 Penetration Max . | . . . . . Secondary Targets 1 | . 1 . . . Max Gunslinging Chain 1 | . 1 . . . Shots Hit Robots 145 | 14 104 9 1 17 Core Hits 53 | 5 35 4 . 9 Critical Kills . | . . . . . Critical Parts Destroyed 2 | . 1 . . 1 Critical Strikes 3 | . 1 . . 2 Burn 1 | . . . . 1 Destroy 1 | . 1 . . . Smash 1 | . . . . 1 Melee Attacks 9 | . . . 1 8 Impact 9 | . . . 1 8 Slashing . | . . . . . Piercing . | . . . . . Sneak Attacks . | . . . . . Combat Hostiles . | . . . . . Follow-up Attacks . | . . . . . Damage Inflicted 2390 | 147 1081 262 64 836 Guns 1399 | 146 1079 50 . 124 Cannons . | . . . . . Explosions 655 | . . 212 . 443 Melee 333 | . . . 64 269 Ramming 3 | 1 2 . . . Kinetic 1361 | 146 1079 50 . 86 Thermal 38 | . . . . 38 Explosive 655 | . . 212 . 443 Electromagnetic . | . . . . . Impact 333 | . . . 64 269 Slashing . | . . . . . Piercing . | . . . . . Highest Corruption 1 | . . . . 1 Average Corruption 1 | . . . . 1 Corruption Purged . | . . . . . Corruption Blocked . | . . . . . Effects 2 | . . . . 2 Matter Fused 2 | . . . . 2 Overload Shots . | . . . . . Overflow Damage 118 | . . . . 118 Projectiles . | . . . . . Explosions 3 | . . . . 3 Melee 115 | . . . . 115 Knockbacks 3 | . . . 1 2 Impact 3 | . . . 1 2 Kinetic . | . . . . . Secondary . | . . . . . Self-Inflicted Damage 40 | . . . . 40 Shots 2 | . . . . 2 Rammed 2 | 1 1 . . . Targets Rammed 2 | 1 1 . . . Kicked . | . . . . . Crushed . | . . . . . Highest Temperature 26 | . 18 . . 26 Average Temperature 8 | . 8 . . 8 Received Heat Transfer 615 | . 378 39 60 138 Siege Activations . | . . . . . Martial Activations . | . . . . . Shielding Activations . | . . . . . Robots Disrupted . | . . . . . Combat Hostiles . | . . . . . Robots Corrupted 1 | . . . . 1 Combat Hostiles 1 | . . . . 1 Parts Fried 1 | . . . . 1 Impact Corruptions 5 | . . . . 5 Robots Melted . | . . . . . Combat Hostiles . | . . . . . Parts Melted . | . . . . . Heat Transferred 148 | . . . . 148 Parts Sabotaged . | . . . . . Parts Stolen . | . . . . . Parts Stripped . | . . . . . Power Chain Reactions . | . . . . . Alert | -11 -10 -10 -8 -6 ------- Run | Yrd Mat Sub Scr Fac Maximum Alert Level . | . . . . . Low Security (%) 100 | 100 100 . . 100 Level 1 . | . . . . . Level 2 . | . . . . . Level 3 . | . . . . . Level 4 . | . . . . . Level 5 . | . . . . . High Security . | . . . . . Max Security . | . . . . . Peak Influence 121 | 5 121 . . 40 Initial . | . . . . . Average 37 | . 52 . . 6 Influence Increases 571 | 10 418 . . 143 Destroy 0b10 Robot/C 320 | . 240 . . 80 Destroy 0b10 Robot/NC 25 | 10 15 . . . Destroy Leader 72 | . 52 . . 20 Successful Hack 69 | . 39 . . 30 Select Force Hacks 30 | . 30 . . . Destroy Structure 25 | . 12 . . 13 Lose Combat Pursuer 30 | . 30 . . . Influence Decreases 571 | 10 355 63 . 143 Entered New Map 31 | . . 31 . . Time Decay 400 | 10 305 32 . 53 Lost Part 130 | . 40 . . 90 Lost Ally 10 | . 10 . . . Squads Dispatched 4 | . 3 . . 1 Investigation 3 | . 2 . . 1 Extermination . | . . . . . Reinforcement 1 | . 1 . . . Assault . | . . . . . Garrison . | . . . . . Intercept . | . . . . . Searches Triggered . | . . . . . Construction Impeded . | . . . . . Haulers Reinforced . | . . . . . Active Scanning Responses . | . . . . . Cargo Convoy Interrupts . | . . . . . Stealth | -11 -10 -10 -8 -6 --------- Run | Yrd Mat Sub Scr Fac Distress Signals 2 | . 2 . . . Communications Jammed . | . . . . . Distress Signals . | . . . . . Times Spotted 45 | . 27 4 5 9 Peak Tracking Total 5 | . 4 2 2 5 Tactical Retreats 2 | . 2 . . . Traps | -11 -10 -10 -8 -6 ------- Run | Yrd Mat Sub Scr Fac Traps Triggered . | . . . . . Indirectly . | . . . . . Trap Hack Attempts . | . . . . . Triggered . | . . . . . Disarmed . | . . . . . Reprogrammed . | . . . . . Reused . | . . . . . Traps Extracted . | . . . . . Installed . | . . . . . Triggered . | . . . . . Machines | -11 -10 -10 -8 -6 ---------- Run | Yrd Mat Sub Scr Fac Machines Disabled 1 | . . 1 . . Max in Single Turn 1 | . . 1 . . Machines Repaired . | . . . . . Machines Dismantled . | . . . . . Machines Sabotaged . | . . . . . Overloaded Fab Kills . | . . . . . Hacking | -11 -10 -10 -8 -6 --------- Run | Yrd Mat Sub Scr Fac Machines Accessed 16 | . 7 2 3 4 Terminals 8 | . 6 . . 2 Fabricators . | . . . . . Repair Stations . | . . . . . Recycling Units 2 | . 1 . . 1 Scanalyzers 1 | . . . . 1 Garrison Access . | . . . . . Total Hacks 48 | . 21 2 15 10 Successful 35 | . 12 2 15 6 Failed 13 | . 9 . . 4 Catastrophic 4 | . 3 . . 1 Database Lockouts . | . . . . . Manual 14 | . 10 . . 4 Terminals 24 | . 18 . . 6 Fabricators . | . . . . . Repair Stations . | . . . . . Recycling Units 5 | . 3 . . 2 Scanalyzers 2 | . . . . 2 Garrison Access . | . . . . . Terminal Hacks 21 | . 4 2 15 . Record 7 | . . . 7 . Robot Analysis 8 | . . . 8 . Open Door 1 | . . 1 . . Recall Reinforcements 1 | . 1 . . . Zone Layout 3 | . 3 . . . Proto ID Catalog 1 | . . 1 . . Fabricator Hacks . | . . . . . Repair Station Hacks . | . . . . . Recycling Unit Hacks 2 | . 1 . . 1 Report Inventory 2 | . 1 . . 1 Scanalyzer 2 | . . . . 2 Insert Component 1 | . . . . 1 Analyze 1 | . . . . 1 Garrison Access Hacks . | . . . . . Unauthorized Hacks 10 | . 7 . . 3 Terminals 7 | . 5 . . 2 Assimilate 1 | . 1 . . . Botnet 6 | . 4 . . 2 Fabricators . | . . . . . Repair Stations . | . . . . . Recycling Units 3 | . 2 . . 1 Reject 1 | . 1 . . . Tunnel 1 | . 1 . . . Fedlink 1 | . . . . 1 Scanalyzers . | . . . . . Garrison Access . | . . . . . Data Cores Recovered . | . . . . . Used . | . . . . . Hacking Detections 7 | . 4 . . 3 Full Trace Events 1 | . 1 . . . Feedback Events . | . . . . . Feedback Blocked . | . . . . . Robot Schematics Acquired . | . . . . . Robots Built . | . . . . . Authchips . | . . . . . Time . | . . . . . Total Robot Build Rating . | . . . . . Part Schematics Acquired 1 | . . . . 1 Parts Built . | . . . . . Authchips . | . . . . . Time . | . . . . . Total Part Build Rating . | . . . . . Parts Repaired . | . . . . . Time . | . . . . . Parts Recycled . | . . . . . Recycled Matter . | . . . . . Retrieved Matter . | . . . . . Retrieved Components . | . . . . . Parts Scanalyzed 1 | . . . . 1 Part Schematics Acquired 1 | . . . . 1 Parts Damaged . | . . . . . Bothacking | -11 -10 -10 -8 -6 ------------ Run | Yrd Mat Sub Scr Fac Used RIF Installer . | . . . . . Robots Hacked . | . . . . . Non-combat . | . . . . . Combat . | . . . . . Robot Hacks Applied . | . . . . . Relay Couplers Released . | . . . . . Fabnet Peak Effective % . | . . . . . Robots Rewired . | . . . . . Allies Hacked . | . . . . . Hacks Repelled . | . . . . . Allies | -11 -10 -10 -8 -6 -------- Run | Yrd Mat Sub Scr Fac Total Allies 1 | . 1 . . . Largest Group 1 | . 1 . . . Highest-Rated Group 10 | . 10 . . . Highest-Rated Ally 10 | . 10 . . . Total Orders . | . . . . . Ally Attacks . | . . . . . Total Damage . | . . . . . Kills . | . . . . . Allies Corrupted . | . . . . . Allies Melted 2 | . . . 2 . Intel | -11 -10 -10 -8 -6 ------- Run | Yrd Mat Sub Scr Fac Active Infowar (turns) 7159 | 9 1025 421 5401 303 Terrain 337 | 9 328 . . . Structural 6822 | . 697 421 5401 303 Jamming 288 | . . . . 288 Robot Analysis Total 8 | . . . 8 . Derelict Logs Recovered 3 | . . 1 2 . Drone Launches . | . . . . . Drone Recoveries . | . . . . . Exploration | -11 -10 -10 -8 -6 ------------- Run | Yrd Mat Sub Scr Fac Turns Passed 7773 | 141 1025 421 5868 318 Spaces Moved 4423 | 64 472 364 3381 142 Core 253 | 3 . . 241 9 Treads 2400 | 61 426 . 1780 133 Legs . | . . . . . Wheels 1770 | . 46 364 1360 . Hover . | . . . . . Flight . | . . . . . Fastest Speed 50 | 50 95 95 50 50 Average Speed 159 | 154 154 105 166 159 Slowest Speed 240 | 160 160 110 240 170 Overloaded Moves . | . . . . . Propulsion Burnouts . | . . . . . Robots Hopped . | . . . . . Potential Cave-ins . | . . . . . Cave-ins Triggered . | . . . . . Exploration Rate (%) 37 | 4 69 23 88 5 Regions Visited 4 Branch Regions 2 Pre-discovered Areas 2 | . 1 . 1 . Known Exits Taken . | . . . . . Unknown Exits Taken 4 | 1 1 1 1 . Scrap Searched 8 | . . 1 7 . Spaces Dug 6 | . 6 . . . Terrain Destroyed 41 | . 19 11 . 11 Melee . | . . . . . Projectile . | . . . . . AOE 41 | . 19 11 . 11 Terrain Rammed . | . . . . . Walls Destroyed . | . . . . . Machines Disabled . | . . . . . Actions | -11 -10 -10 -8 -6 --------- Run | Yrd Mat Sub Scr Fac Total 5004 | 86 624 386 3710 198 Wait 85 | 1 56 8 7 13 Move 4419 | 63 471 363 3380 142 Hop . | . . . . . Pick Up 167 | 5 7 4 151 . Fast Attach 15 | 7 2 . 5 1 Attach 16 | . 3 . 3 10 Detach 9 | . . . 8 1 Swap 8 | . 3 1 2 2 Drop 160 | . 2 3 153 2 Fire 114 | 9 79 7 . 19 Melee 9 | . . . 1 8 Ram . | . . . . . Kick . | . . . . . Crush 2 | 1 1 . . . Escape Stasis . | . . . . . Rewire . | . . . . . Trap . | . . . . . Miscellaneous . | . . . . . Route ------- -11/Scrapyard -10/Materials (discovered 4 exits: [*Mat x2] / [*Min] / *Sub) -10/Subcaves -8/Scraptown (discovered 2 exits: *Fac x2) -6/Factory History --------- Turn | Location | Event 14 | -11/Scrapyard | Discovered new exit (range 15) 142 | -11/Scrapyard | Entered Materials 306 | -10/Materials | Build established: Mutant 349 | -10/Materials | Discovered new exit (range 15) 680 | -10/Materials | Core integrity fell below 50% 759 | -10/Materials | Discovered new exit (range 9) 842 | -10/Materials | Derelicts attacked the area 915 | -10/Materials | Lost 3 parts (1p2n) 934 | -10/Materials | Discovered new exit (range 16) 1157 | -10/Materials | Discovered new exit (range 10) 1167 | -10/Materials | Entered Subcaves 1168 | -10/Subcaves | Approached by a straggling Scientist 1197 | -10/Subcaves | Core integrity fell below 20% 1475 | -10/Subcaves | Visited 4L-MR0's lab 1490 | -10/Subcaves | Found Rainbow Chip 1545 | -10/Subcaves | Scientist uncovered a shortcut to Scraptown 1588 | -10/Subcaves | Entered Scraptown 1672 | -8/Scraptown | Visited UFD Registry 1672 | -8/Scraptown | Registered with UFD as "Railboard" 1673 | -8/Scraptown | Heard Great Nut preacher, LISTEN AND RECITE! 1766 | -8/Scraptown | Build established: Scavenger-Mutant 1862 | -8/Scraptown | Discovered new exit (range 11) 1925 | -8/Scraptown | Scanned Subdweller tech in exchange for log data 1929 | -8/Scraptown | Learned Factory garrison access intel 2312 | -8/Scraptown | Visited Fellowship of the Rings 2328 | -8/Scraptown | Visited Junk Repository 2400 | -8/Scraptown | Visited Assassins FH 2419 | -8/Scraptown | Visited Awakened 2428 | -8/Scraptown | Visited Shadow of the Wyrm 2459 | -8/Scraptown | Visited Cave Peace 2501 | -8/Scraptown | Visited Cyclists 2515 | -8/Scraptown | Entered Cyclist Reading Room 2602 | -8/Scraptown | Visited Curators Association 2626 | -8/Scraptown | Visited Observation Area 2661 | -8/Scraptown | Visited Research Penetration Think Tank 2778 | -8/Scraptown | Visited Supply Room 2892 | -8/Scraptown | Visited Derelict Rescue Squad 2906 | -8/Scraptown | Found DRS Beacon 2948 | -8/Scraptown | Visited Analyses Database 2998 | -8/Scraptown | Visited Chapter 10 3003 | -8/Scraptown | Received an X-ray algorithm 3212 | -8/Scraptown | Visited Botcube Research 3222 | -8/Scraptown | Found Botcube 3266 | -8/Scraptown | Visited DA-N13 Charitable Foundation 3290 | -8/Scraptown | Found DCF Scrap (29 items) 3357 | -8/Scraptown | Visited Science Testing Area 5818 | -8/Scraptown | Learned location of Extension (-5) 6924 | -8/Scraptown | Build established: Mutant 7295 | -8/Scraptown | Met Optimus 7295 | -8/Scraptown | Accepted into 0bPrime 7323 | -8/Scraptown | Build established: Derelict-Mutant 7412 | -8/Scraptown | Civil war broke out across Scraptown 7440 | -8/Scraptown | Discovered new exit (range 5) 7456 | -8/Scraptown | Entered Factory 7456 | -6/Factory | Evolved 8 slots: Power x1, Propulsion x2, Utility x5 7457 | -6/Factory | Loaded intel: 4 garrison access locations 7480 | -6/Factory | Lost 8 allies 7659 | -6/Factory | Loaded intel: 8 recycling unit locations 7704 | -6/Factory | Ran an X-ray algorithm 7774 | -6/Factory | Self-destructed Last Messages --------------- K-01 Serf collects debris. Arm. Treads destroyed. Lgt. Fission Core destroyed. System corrupted: Matter fused (-7). K-01 Serf collects debris. S-27 Virus destroyed. Mak. Hacking Suite destroyed. K-01 Serf collects debris. Hvy. Assault Rifle destroyed. Dropped Lrg. Storage Unit. Dropped Datajack. K-01 Serf collects debris. Structural Scanner destroyed. K-01 Serf collects debris. Acquired 14 matter. Acquired Hvy. Laser. K-01 Serf collects debris. G-50 Soldier suffers critical hit (Burn). Hvy. Laser destroyed. K-01 Serf collects debris. Map ----- +----------------------------------------------------+ | ##### ################# # | | #####+## ####### # # | | ## # # ## "" # # | | ## # # ## """ """ # # | | ##! ! # # ## """ S" # # """" "" | | ## # # ## """ """ # # """ "" | | ## """ # # ## """ / + """" "" | | ## """ # # ## """ # # """" "" | | ## """ # ##+#### """ # # """" "" | | ## + + """ # # """" "" | | ##"" #### #"## s # # """" "" | | ##"Y # #" " ; # # | | ##"" # " # ###+###### | | ## #"";; ;;## # | | ########; kg =% ;## # | | ####### ; s ; # # | | ?????###; ;## # | | ?????## ; ; # | | ?????###" ; # "" "" | | ??????##" /!! ; + "" "" | | ??????### & " # """ """ | | ?????######### % "" # """ """ | | ???? # ## # """ """ | | ???? ##### # | | ???? # | | ????" " T" @ ########## | | ????" " "" ########## | | ????" " ##???????? | | ??????? " ##???????? | | ???????! " # ##############???????? | | ??????? " # ##############???????? | | ????????? " ### ####???????????????????? | | ????????? ? ### # ???????????????????? | | ?????????????## # ?????????????????????? | | ?????????????## + ?????????????????????? | | ?????????????## # ?????????????????????? | | ??????????????# # ?????????????????????? | | ?????????????? ##?????????????????????? | | ??????????????###+###??????????????????????? | | ?????????????? ????????????????????????? | | ???????????????????????????????????????????? | | ???????????????????????????????????????????? | | ???????????????????????????????????????????? | | ???????????????????????????????????????????? | | ???????????????????????????????????????????? | | ???????????????????????????????????????????? | | ???????????????????????????????????????????? | | ???????????????????????????????????????????? | | ???????????????????????????????????????????? | | ???????????????????????????????????????????? | +----------------------------------------------------+ Best States ------------- Heat Dissipation 37 Energy Generation 31 Energy Capacity 360 Matter Stores 300 Matter Capacity 300 Sight Range 16 Terrain Scan Range 16 Terrain Scan Density 10 Jamming Range 12 Evasion (%) 50 Targeting Accuracy 6 Core Analysis 6 Recoil Reduction 3 Offensive Hacking 21 Defensive Hacking 12 Item Schematics ----------------- Imp. Targeting Computer | -6/Factory | Scanalyzed Robot Schematics ------------------ None Fabricated ------------ Nothing Repaired ---------- Nothing Alien Tech Used ----------------- None Achievements -------------- None Challenges ------------ None Game ------ Seed SignalSmallMachine Manual? 0 Play Time 00:53:32 Cumulative 123.0 hours Start 2025.06.09 @ 22:50:13 End 2025.06.20 @ 17:24:22 Sessions 4 Manual Loads 0 Difficulty Rogue Special Mode None Game No. 128 Rogue 128 Adventurer 0 Explorer 0 Win Type - Total 2 Types 1/0/0/1/0/0/0/0/0/0 Lore% 60 Gallery% 56 Achievement% 51 Wizard Run 0 Options --------- Layout 1 ASCII 0 Keyboard 1 Movement Arrows Keybinds 0 Fullscreen 1 Font 32/SmallcapsGlow Map View 77x35 Zoom Use 7% Tactical HUD 0 Map Filters NONE Filters NONE Steam 1 RUN: 855f5303-b155-4a3e-99b8-28aaff4167c1